[Event "Marcel Invitational Chess-ch 2022"]
[Site "Dhaka"]
[Date "2022.04.22"]
[Round "4.2"]
[White "Manon, Reja Neer"]
[Black "Rahman, Syed Mahfuzur"]
[Result "1/2-1/2"]
[ECO "C78"]
[WhiteElo "2209"]
[BlackElo "2113"]
[Annotator "TA"]
[PlyCount "94"]
[EventDate "2022.04.18"]
[EventCountry "BAN"]
[SourceTitle "playchess.com"]
[Source "ChessBase"]
[SourceQuality "1"]
[TimeControl "5400+30"]

{[%evp 16,94,15,8,16,7,7,8,22,16,14,6,12,10,24,29,38,14,31,-61,-58,-65,-29,-53,-54,-86,0,0,0,-18,0,0,49,35,49,14,13,-4,0,-80,-95,-147,-131,-364,-374,-283,-133,-128,-116,-127,-18,-17,-20,-238,-66,-83,12,12,12,12,12,12,12,0,0,0,0,0,8,0,0,0,0,0,0,0,0,0,0,0,0]} 1. e4 {[%emt 0:02:35]} e5 {[%emt 0:05:57]} 2. Nf3 {[%emt 0:00:23]} Nc6 {[%emt 0:00:02]} 3. Bb5 {[%emt 0:00:20]} a6 {[%emt 0:00:07]} 4. Ba4 {[%emt 0:00:03]} Nf6 {[%emt 0:00:08]} 5. O-O {[%emt 0:01:19]} b5 {[%emt 0:00:10]} 6. Bb3 {[%emt 0:00:02]} Bc5 {[%emt 0:00:06]} 7. d3 {[%emt 0:04:52]} d6 {[%emt 0:00:52]} 8. h3 {[%emt 0:03:39]} O-O {[%emt 0:02:58]} 9. c3 {[%emt 0:01:31]} h6 {[%emt 0:05:08] C78: Ruy Lopez: Archangelsk and Möller Defences.} 10. Re1 {[%emt 0:00:48]} Bb6 {[%emt 0:02:42]} 11. Nbd2 {[%emt 0:05:06][%cal Bb1d2,Bd2f1,Bf1g3][%mdl 32]} Na5 {[%emt 0:01:29]} 12. Bc2 {[%emt 0:00:12]} c5 {[%emt 0:00:10]} 13. Nf1 {[%emt 0:00:16]} Nc6 {[%emt 0:03:42]} 14. Ng3 {[%emt 0:01:55]} Re8 {[%emt 0:15:27][%cal Bf8e8,Be8e7,Be7e6][%mdl 32]} 15. Nh4 {[%emt 0:08:40]} d5 {[%emt 0:05:07] [#]} 16. Nhf5 $146 {[%emt 0:00:59]} ({Predecessor:} 16. exd5 Nxd5 17. Nhf5 Qf6 18. Qf3 Bxf5 19. Nxf5 Rad8 20. Bb3 c4 21. dxc4 bxc4 22. Bxc4 {0-1 (33) Lopez Gonzalez,C (1771)-Dominguez Rincon,M (2070) Medellin 2018}) 16... d4 {[%emt 0:04:45]} 17. c4 {[%emt 0:02:01]} (17. Bb3 $14) 17... bxc4 $15 {[%emt 0:03:04]} 18. dxc4 {[%emt 0:02:09]} Ne7 {[%emt 0:09:32]} (18... Ba5 {feels hotter.} 19. Ba4 Re6 20. Bd2 Bxd2 21. Qxd2 Qa5) 19. Nxe7+ {[%emt 0:04:08]} Rxe7 {[%emt 0:03:56]} 20. f4 {[%emt 0:03:03]} exf4 {[%emt 0:11:22]} (20... Bb7 $17) 21. Bxf4 $11 {[%emt 0:01:06]} Bc7 {[%emt 0:07:52]} (21... g5 22. e5 gxf4 23. exf6 Rxe1+ 24. Qxe1 $16) 22. e5 {[%emt 0:05:50]} Nh7 {[%emt 0:01:00]} 23. Qd3 {[%emt 0:07:51]} Nf8 {[%emt 0:00:07]} (23... g6 $11) 24. Nh5 $1 $14 {[%emt 0:00:17]} Re6 {[%emt 0:02:36]} 25. Qg3 {[%emt 0:05:17][%csl Gh5][%cal Rg3g7] [#]} Ng6 $1 {[%emt 0:00:24]} 26. Be4 {[%emt 0:10:29]} Rb8 {[%emt 0:00:51][%cal Ba8b8,Bb8b2,Bb2c2][%mdl 32]} 27. Bd5 {[%emt 0:02:47]} (27. b3 $11) 27... Rxb2 $17 {[%emt 0:00:56] ...Bb7 is the strong threat.} 28. Bc1 {[%emt 0:02:31]} (28. Rf1 $142) 28... Rc2 {[%emt 0:03:06] And now ...Rb6 would win.} 29. Bxe6 $2 {[%emt 0:03:13]} (29. Nf4 $17 {was called for.} Rc3 30. Qf2) 29... Bxe6 $19 {[%emt 0:00:10]} 30. Nf4 {[%emt 0:00:27]} Qh4 {[%emt 0:01:54]} (30... Bxc4 31. Nxg6 Rc3 32. Qg4 fxg6 33. Qxg6 $11) (30... Bf5 $19 {is more deadly.} 31. Nxg6 Bxg6) 31. Qxh4 $17 {[%emt 0:02:42]} Nxh4 {[%emt 0:00:01]} 32. Ba3 {[%emt 0:01:29]} d3 {[%emt 0:06:36]} ({Much worse is} 32... Bxc4 $6 33. Rac1 Rxc1 34. Rxc1 $11) (32... g5 $17 33. Nxe6 fxe6 34. Bxc5 Rxg2+ 35. Kf1 Rh2) 33. Nxe6 $11 {[%emt 0:10:35]} fxe6 {[%emt 0:00:15]} 34. Rad1 $2 {[%emt 0:01:24]} (34. Bxc5 $11 Nxg2 35. Rf1 (35. Re4 $2 d2 $19)) 34... Rxg2+ $2 {[%emt 0:01:13]} (34... Nxg2 $19 35. Re4 Re2) 35. Kh1 {[%emt 0:00:12] [#]} Rxa2 {[%emt 0:00:08]} (35... Re2 $1 $17 {Hoping for ...Nf3.} 36. Rxe2 dxe2) 36. Rxd3 {[%emt 0:00:30] The position is equal.} Ng6 {[%emt 0:00:57]} 37. Bxc5 {[%emt 0:00:33]} Nxe5 {[%emt 0:00:39]} 38. Rde3 {[%emt 0:00:51]} Nxc4 {[%emt 0:00:29]} 39. Rxe6 {[%emt 0:00:13]} Rh2+ {[%emt 0:00:34]} 40. Kg1 {[%emt 0:00:01] Threatens to win with Re8+.} Rxh3 {[%emt 0:01:07]} 41. Rxa6 {[%emt 0:00:58]} Ne5 {[%emt 0:02:40] aiming for ...Nf3+.} 42. Re3 {[%emt 0:00:43]} Rxe3 43. Bxe3 {[%emt 0:00:01]} Ng4 {[%emt 0:00:44]} 44. Bd4 {[%emt 0:00:21]} Be5 {[%emt 0:00:05]} 45. Bxe5 {[%emt 0:01:32]} Nxe5 {[%emt 0:00:01]} 46. Kg2 {[%emt 0:00:07]} Kh7 {[%emt 0:00:24]} 47. Kg3 {[%emt 0:00:06]} Nd7 {[%emt 0:01:47] Weighted Error Value: White=0.29 (precise) /Black=0.32} 1/2-1/2

[Event "Marcel Invitational Chess-ch 2022"]
[Site "Dhaka"]
[Date "2022.04.22"]
[Round "4.4"]
[White "Jamal Uddin"]
[Black "Mohammad, Javed"]
[Result "1-0"]
[ECO "D03"]
[WhiteElo "2106"]
[BlackElo "2070"]
[Annotator "TA"]
[PlyCount "101"]
[EventDate "2022.04.18"]
[EventCountry "BAN"]
[SourceTitle "playchess.com"]
[Source "ChessBase"]
[SourceQuality "1"]
[TimeControl "5400+30"]

{[%evp 9,101,14,25,0,7,6,11,10,23,2,11,13,13,11,10,0,16,15,26,24,29,22,29,15,68,34,113,71,66,77,95,77,77,41,40,10,45,0,0,-47,22,22,22,22,18,23,15,0,16,0,0,0,0,0,5,7,5,13,6,24,331,316,575,575,581,577,575,553,574,574,558,488,532,512,521,495,458,430,597,589,550,597,596,588,574,567,539,445,590,591,600,590,627,605]} 1. d4 {[%emt 0:08:49]} Nf6 {[%emt 0:00:14]} 2. Bg5 {[%emt 0:00:44]} d5 {[%emt 0:00:47]} 3. e3 {[%emt 0:00:11]} e6 {[%emt 0:02:14]} 4. Nf3 {[%emt 0:00:50]} h6 {[%emt 0:00:21]} 5. Bh4 {[%emt 0:00:42]} Nbd7 {[%emt 0:01:49]} 6. Bd3 {[%emt 0:01:02] D03: 1 d4 d5 2 Nf3 Nf6 3 Bg5, including Torre Attack with early ...d5.} Be7 {[%emt 0:04:52]} 7. c4 {[%emt 0:01:25]} c5 {[%emt 0:04:36]} 8. Nc3 {[%emt 0:01:23] The position is equal.} cxd4 {[%emt 0:00:23]} 9. Nxd4 {[%emt 0:01:36]} O-O {[%emt 0:06:22]} 10. cxd5 {[%emt 0:04:30]} Nxd5 {[%emt 0:00:39]} 11. Bxe7 {[%emt 0:00:24]} Nxe7 {[%emt 0:00:14]} 12. Rc1 {[%emt 0:00:47]} Nc5 {[%emt 0:01:10]} 13. Bb1 {[%emt 0:00:30]} e5 {[%emt 0:01:40] [#]} 14. Nf3 $146 {[%emt 0:05:16]} ({Predecessor:} 14. Qc2 Ng6 15. Nde2 b6 16. b4 Ne6 17. O-O Bb7 18. Ng3 Re8 19. Nce4 Rc8 20. Qe2 Rxc1 21. Rxc1 {1-0 (60) Melnichenko,A (2282)-Volkov,D Kiev 2011}) 14... Qxd1+ {[%emt 0:11:24]} 15. Nxd1 {[%emt 0:02:21]} Nd7 {[%emt 0:12:08]} 16. O-O {[%emt 0:03:17]} f5 {[%emt 0:01:38]} (16... f6 $11) 17. Nc3 {[%emt 0:02:10]} a5 {[%emt 0:05:59]} (17... e4 $14) 18. Rfd1 {[%emt 0:02:32] &Bianco is more active.} e4 {[%emt 0:03:32]} 19. Nd4 {[%emt 0:00:59][%cal Og2g4]} Ne5 {[%emt 0:00:36]} 20. Ncb5 {[%emt 0:02:28]} Bd7 {[%emt 0:08:41]} 21. Rc7 {[%emt 0:02:19]} (21. Rc5 $5 {[%cal Rc5e5]} N5c6 22. Nxc6 Bxc6 23. Nd4 $14) 21... b6 {[%emt 0:06:08]} 22. a4 {[%emt 0:06:40] Threatening Ba2+.} (22. Nd6 $5 {[%cal Rf2f4]}) 22... Rac8 {[%emt 0:01:48]} 23. Ba2+ {[%emt 0:11:33]} Kh8 {[%emt 0:01:42]} 24. Ne6 {[%emt 0:04:58]} (24. Ra7 $11) 24... Bxe6 {[%emt 0:00:59]} (24... Bxb5 $15 25. Rxc8 Rxc8 26. axb5 Nd3) 25. Bxe6 $11 {[%emt 0:00:42]} Rxc7 {[%emt 0:01:11]} 26. Nxc7 {[%emt 0:00:10]} Nd3 {[%emt 0:01:49]} 27. b3 {[%emt 0:00:57]} Nc6 {[%emt 0:06:13]} 28. f4 {[%emt 0:02:00]} Ncb4 {[%emt 0:00:41]} 29. Kf1 {[%emt 0:10:42]} g5 {[%emt 0:01:27] Threatens to win with ...Nc2.} 30. g3 {[%emt 0:01:02]} Rf6 {[%emt 0:00:36]} 31. Bc4 {[%emt 0:01:57]} gxf4 {[%emt 0:01:07]} 32. gxf4 {[%emt 0:01:01]} Rc6 {[%emt 0:04:15]} 33. Ne6 {[%emt 0:05:24]} Nc2 {[%emt 0:02:33] Pair of Knights!} 34. Ke2 {[%emt 0:00:38] [#] Black must now prevent Rg1.} Na3 $2 {[%emt 0:00:23][%mdl 8192] A mistake that costs the game.} (34... Rd6 $11 {and Black stays safe.}) 35. Nd4 $18 {[%emt 0:00:25]} Rc5 {[%emt 0:04:34]} (35... Rc8 36. Bxd3 (36. Nxf5 Nxc4 37. bxc4 Rxc4 $11) 36... exd3+ 37. Kxd3 b5 38. axb5 Rb8) 36. Bxd3 {[%emt 0:01:33] White is clearly winning.} exd3+ {[%emt 0:00:09]} 37. Kxd3 {[%emt 0:00:31][%mdl 4096] Endgame Ra1 is the strong threat. KRN-KRN} b5 {[%emt 0:00:10]} 38. Ra1 {[%emt 0:02:09]} b4 {[%emt 0:00:22]} 39. Rg1 {[%emt 0:00:20]} Kh7 {[%emt 0:00:14] [#]} 40. Rg7+ $3 {[%emt 0:00:55][%mdl 512]} Kh8 {[%emt 0:00:43] Hoping for ...Rc3+.} 41. Rf7 {[%emt 0:00:56]} Rc3+ {[%emt 0:00:11]} 42. Kd2 {[%emt 0:02:21]} Nb1+ {[%emt 0:00:18]} 43. Ke2 {[%emt 0:00:03]} Rc1 {[%emt 0:01:28]} 44. Rxf5 {[%emt 0:00:32]} Nc3+ {[%emt 0:01:24]} 45. Kf3 {[%emt 0:01:14]} Rf1+ {[%emt 0:00:54]} 46. Kg2 {[%emt 0:00:48]} Re1 {[%emt 0:00:10]} 47. Kf2 {[%emt 0:02:28]} Rh1 {[%emt 0:00:18]} 48. Rh5 {[%emt 0:00:30]} Kg7 {[%emt 0:00:30]} 49. Kg2 {[%emt 0:00:23]} Re1 {[%emt 0:00:13]} 50. Rxa5 {[%emt 0:00:08]} Nd1 {[%emt 0:00:29]} 51. Re5 {[%emt 0:00:45] Weighted Error Value: White=0.14 (very precise) /Black=0.35} 1-0

[Event "Marcel Invitational Chess-ch 2022"]
[Site "Dhaka"]
[Date "2022.04.22"]
[Round "4.5"]
[White "Ahmed, Feroz"]
[Black "Mohammad Minhaz Uddin"]
[Result "0-1"]
[ECO "A27"]
[WhiteElo "1901"]
[BlackElo "2267"]
[Annotator "TA"]
[PlyCount "52"]
[EventDate "2022.04.18"]
[EventCountry "BAN"]
[SourceTitle "playchess.com"]
[Source "ChessBase"]
[SourceQuality "1"]
[TimeControl "5400+30"]

{[%evp 9,52,15,26,-14,0,-39,-28,-29,-27,-28,-19,-91,-81,-131,-94,-133,-130,-133,-138,-183,-165,-357,-330,-335,-312,-262,-179,-161,-133,-246,-240,-304,-313,-406,-382,-381,-370,-1106,-942,-5893,-3066,-2517,-2280,-3187,-2059]} 1. c4 {[%emt 0:00:03]} e5 {[%emt 0:14:07]} 2. g3 {[%emt 0:00:23]} Nc6 {[%emt 0:00:08]} 3. Bg2 {[%emt 0:00:16]} Bc5 {[%emt 0:00:11]} 4. Nc3 {[%emt 0:01:35]} d6 {[%emt 0:00:13]} 5. Nf3 {[%emt 1:30:43]} Nge7 {[%emt 0:01:31]} 6. Na4 {[%emt 0:00:00] A27: English Opening: Three Knights Variation.} Be6 {[%emt 0:00:47] [#]} 7. Qc2 $146 {[%emt 0:00:00]} ({Predecessor:} 7. Nxc5 dxc5 8. d3 f6 9. Be3 b6 10. O-O O-O 11. Nd2 Qe8 12. Re1 Rd8 13. Qa4 a5 {0-1 (30) Berkovich,M (2410)-Narciso Dublan,M (2518) Andorra 2003}) 7... f6 {[%emt 0:02:07]} 8. O-O {[%emt 0:00:00] Black has an edge.} Qd7 {[%emt 0:00:32]} 9. a3 {[%emt 0:00:00]} a6 {[%emt 0:01:05]} 10. Rd1 {[%emt 0:00:00]} (10. b4 $11 {keeps the balance.} Bd4 11. Bb2) 10... Bh3 {[%emt 0:05:27]} 11. Bh1 {[%emt 0:00:00]} (11. Bxh3 $142 Qxh3 12. Nxc5 dxc5 13. b4) 11... h5 {[%emt 0:05:49] &Nero is more active.} 12. e3 {[%emt 0:00:00]} h4 {[%emt 0:35:41]} 13. d4 {[%emt 0:00:00]} exd4 {[%emt 0:00:11]} 14. Nxd4 {[%emt 0:00:00]} hxg3 {[%emt 0:02:19]} 15. hxg3 {[%emt 0:00:00]} (15. fxg3 {was forced.} Bxd4 16. exd4) 15... Bxd4 $19 {[%emt 0:05:43]} 16. exd4 {[%emt 0:00:00]} Bg4 {[%emt 0:00:04][%cal Oh8h1] [#] Inhibits Bf3. ...Rxh1+! is the strong threat.} 17. Bg2 {[%emt 0:00:00]} Bxd1 {[%emt 0:00:13]} 18. Qxd1 {[%emt 0:00:00]} O-O-O {[%emt 0:03:33]} 19. Be3 {[%emt 0:00:00]} (19. b4 $17) 19... Nf5 {[%emt 0:00:38]} 20. d5 {[%emt 0:00:00]} Ne5 {[%emt 0:00:42]} 21. Bf4 {[%emt 0:00:00]} g5 {[%emt 0:06:49]} ({Not} 21... Nxc4 22. Rc1 $17) 22. Bxe5 {[%emt 0:00:00]} fxe5 {[%emt 0:00:02]} 23. c5 $2 {[%emt 0:00:51]} (23. Qg4) 23... Qh7 {[%emt 0:00:19] Black is clearly winning.} 24. Qd3 {[%emt 0:03:39]} Rdf8 {[%emt 0:01:20]} 25. Kf1 {[%emt 0:04:14]} Qh2 {[%emt 0:00:05][%cal Oe5e4] Hoping for ...e4!} 26. Bf3 {[%emt 0:00:57] [#]} Nxg3+ $1 {[%emt 0:00:10] Weighted Error Value: White=1.06/Black=0.34} 0-1

[Event "Marcel Invitational Chess-ch 2022"]
[Site "Dhaka"]
[Date "2022.04.22"]
[Round "4.6"]
[White "Kazi Zarin, Tasnim"]
[Black "abzid, Rahman"]
[Result "1-0"]
[ECO "B01"]
[WhiteElo "1816"]
[BlackElo "2091"]
[Annotator "TA"]
[PlyCount "53"]
[EventDate "2022.04.18"]
[EventCountry "BAN"]
[SourceTitle "playchess.com"]
[Source "ChessBase"]
[SourceQuality "1"]
[TimeControl "5400+30"]

{[%evp 17,53,50,51,21,76,88,282,299,319,320,327,312,328,319,300,298,713,634,622,616,776,804,750,668,708,633,562,464,451,423,484,464,512,511,583,577,551,509]} 1. e4 {[%emt 0:00:03]} d5 {[%emt 0:08:48]} 2. exd5 {[%emt 0:00:05]} Qxd5 {[%emt 0:00:07]} 3. Nc3 {[%emt 0:00:05]} Qa5 {[%emt 0:00:03]} 4. Nf3 {[%emt 0:00:07]} c6 {[%emt 0:00:53]} 5. d4 {[%emt 0:01:00]} Nf6 {[%emt 0:01:59]} 6. Bc4 {[%emt 0:00:25]} Bg4 {[%emt 0:01:26][%cal Bc8g4,Bg4h5,Bh5g6][%mdl 32]} 7. Bd2 {[%emt 0:04:31]} e6 {[%emt 0:00:59]} 8. h3 {[%emt 0:01:27]} Bh5 {[%emt 0:00:19]} 9. g4 {[%emt 0:03:35]} Bg6 $1 {[%emt 0:00:01]} 10. Ne5 {[%emt 0:18:04] B01: Scandinavian Defence.} Qb6 {[%emt 0:02:57]} (10... Nbd7 $11 {remains equal.}) 11. Qe2 $16 {[%emt 0:05:29] &Bianco is more active.} ({Much worse is} 11. Nxg6 hxg6 12. Qe2 Be7 $11) 11... Be7 $2 {[%emt 0:08:15] [#]} ({Weaker is} 11... Qxd4 12. f4 Ne4 13. O-O-O) (11... Nbd7 $16) 12. O-O-O $1 $18 {[%emt 0:06:08] White has a decisive advantage.} Nbd7 {[%emt 0:03:05]} 13. h4 {[%emt 0:06:00][%cal Bh3h4,Bh4h5,Bh5g6][%mdl 32]} Qxd4 {[%emt 0:48:23]} 14. Nxd7 {[%emt 0:00:32]} Nxd7 {[%emt 0:00:22] [#]} 15. Be3 $146 {[%emt 0:04:31]} ({Don't do} 15. h5 O-O-O 16. Be3 Qe5 $18) ({Predecessor:} 15. h5 Bxc2 16. Kxc2 Ne5 17. Bb3 Rd8 18. Bc1 Qc5 19. Be3 Qa5 20. Bd4 Nd7 21. h6 Rg8 22. hxg7 Qg5 23. f4 Qxf4 24. Rxh7 Nf6 25. Rh8 Rxd4 26. Rxd4 Qxd4 27. g5 {1-0 (26) Tallo Dominguez,I (2232)-Anguera Maestro,J (2090) Barcelona 2015}) 15... Qe5 {[%emt 0:01:43]} 16. h5 {[%emt 0:02:19]} Ba3 $2 {[%emt 0:06:37]} (16... Be4 $2 17. f4 Qa5 18. Nxe4 $18) (16... O-O-O 17. f4 Qa5 18. hxg6 hxg6 19. Rxh8 Rxh8) 17. bxa3 {[%emt 0:01:56] White is clearly winning.} Qxc3 {[%emt 0:00:23]} 18. hxg6 {[%emt 0:02:24]} Qxa3+ {[%emt 0:00:49]} 19. Kb1 {[%emt 0:01:54] [#] Intending gxf7+ and mate.} O-O-O {[%emt 0:00:47]} 20. Rxh7 {[%emt 0:05:11]} Rxh7 {[%emt 0:01:47]} 21. gxh7 {[%emt 0:00:05]} Rh8 {[%emt 0:00:38]} 22. Bd4 {[%emt 0:04:53] g5 is the strong threat.} Rxh7 {[%emt 0:01:14]} 23. Bb3 {[%emt 0:05:10] Black must now prevent Qd3.} Qe7 {[%emt 0:07:58]} 24. Bxa7 {[%emt 0:01:54]} Rh3 {[%emt 0:00:43]} 25. Bd4 {[%emt 0:02:40]} g6 {[%emt 0:00:41]} 26. f4 {[%emt 0:04:03][%cal Bf2f4,Bf4f5][%mdl 32]} Qh4 {[%emt 0:01:51]} 27. f5 {[%emt 0:02:01] Black did not feel at home in the position after the opening.  Weighted Error Value: White=0.14 (very precise) /Black=0.46} 1-0

[Event "Marcel Invitational Chess-ch 2022"]
[Site "Dhaka"]
[Date "2022.04.23"]
[Round "5.1"]
[White "Ahmed, Sheikh Nasir"]
[Black "Manon, Reja Neer"]
[Result "0-1"]
[ECO "A25"]
[WhiteElo "2168"]
[BlackElo "2209"]
[Annotator "TA"]
[PlyCount "160"]
[EventDate "2022.04.18"]
[EventCountry "BAN"]
[SourceTitle "playchess.com"]
[Source "ChessBase"]
[SourceQuality "1"]
[TimeControl "5400+30"]

{[%evp 9,160,-5,0,0,12,0,4,0,-1,-13,9,-11,2,-7,9,6,5,2,21,-52,-49,-75,-73,-63,-57,-137,-106,-116,-74,-141,-75,-74,-74,-82,-92,-96,-84,-133,-135,-131,-131,-131,-127,-195,-163,-247,-228,-235,-221,-222,-210,-188,-214,-216,-218,-211,-216,-210,-203,-264,-281,-274,-281,-281,-281,-274,-274,-266,-247,-413,-413,-598,-592,-495,-370,-12612,-12612,-12612,-12612,-5801,-5085,-5085,-614,-6718,-8144,-11385,-10135,-8162,-8155,-5077,-5061,-2591,-1812,-1383,-1122,-29937,-12816,-29958,-29959,-29957,-29956,-29950,-29958,-29961,-687,-669,-687,-669,-447,-12612,-422,-422,-422,-2516,-422,-422,-422,-589,-582,-29959,-29957,-29955,-29952,-29954,-29957,-29972,-29970,-29981,-29982,-29982,-29983,-29983,-29984,-29988,-29989,-29989,-29990,-29994,-29987,-29987,-29986,-29986,-29986,-29988,-29989,-29989,-29989,-29989,-29990,-29990,-29991,-29991,-29992]} 1. c4 {[%emt 0:10:39]} e5 {[%emt 0:11:08]} 2. Nc3 {[%emt 0:00:10]} Nc6 {[%emt 0:00:12]} 3. a3 {[%emt 0:00:15]} g6 {[%emt 0:10:07]} 4. g3 {[%emt 0:03:22]} Bg7 {[%emt 0:00:39]} 5. Bg2 {[%emt 0:00:03]} d6 {[%emt 0:02:08]} 6. d3 {[%emt 0:02:38] A25: English Opening vs King's Indian with ...Nc6 but without early d3.} Be6 {[%emt 0:01:09]} 7. e3 {[%emt 0:07:40]} Nge7 {[%emt 0:01:05]} 8. Nd5 {[%emt 0:00:11] The position is equal.} Rb8 {[%emt 0:01:25]} 9. Ne2 {[%emt 0:01:27]} O-O {[%emt 0:00:55]} 10. O-O {[%emt 0:00:18]} Qd7 {[%emt 0:13:52] [#]} 11. Rb1 $146 {[%emt 0:01:46]} ({Predecessor:} 11. Nec3 Nd8 12. Qa4 Nxd5 13. Qxd7 Bxd7 14. cxd5 f5 15. Bd2 c5 16. Rab1 Nf7 17. Rfc1 {½-½ (37) Mnguni,J (2132)-Mthunzi,B (2090) Durban 2017}) 11... a6 {[%emt 0:02:01]} 12. b4 {[%emt 0:00:12]} b5 {[%emt 0:01:25]} 13. Nec3 {[%emt 0:06:22]} f5 {[%emt 0:03:59]} 14. a4 {[%emt 0:04:50]} (14. cxb5 $11 axb5 15. Qc2) 14... bxc4 $15 {[%emt 0:04:33]} 15. dxc4 {[%emt 0:00:36]} e4 {[%emt 0:00:54]} 16. b5 {[%emt 0:27:53]} Ne5 {[%emt 0:08:01]} 17. Qe2 {[%emt 0:00:22]} (17. Nxe7+ $15 Qxe7 18. Nd5) 17... axb5 {[%emt 0:06:39]} 18. axb5 {[%emt 0:00:59]} Nd3 {[%emt 0:11:49]} 19. Bd2 {[%emt 0:02:52]} (19. Nxe7+ $142 Qxe7 20. Nd5) 19... Bxd5 {[%emt 0:03:07]} ({Black should play} 19... Bxc3 20. Bxc3 Nxd5 21. cxd5 Bxd5) 20. cxd5 $17 {[%emt 0:01:13]} Bxc3 {[%emt 0:01:21]} 21. Bxc3 {[%emt 0:00:02]} Rxb5 {[%emt 0:01:08]} 22. Qa2 {[%emt 0:06:41]} Rfb8 $1 {[%emt 0:04:01]} ({But not} 22... Rxd5 $6 23. f3 exf3 24. Bxf3 $11) 23. f3 {[%emt 0:07:23]} (23. Rbd1 $142) 23... Rxb1 $1 {[%emt 0:01:26]} ({Don't do} 23... Nxd5 24. fxe4 Rxb1 25. Qxd5+ Kf8 26. Qxd3 Rxf1+ 27. Bxf1 fxe4 28. Qd4 $16 (28. Qxe4 Qf5 $16)) 24. Rxb1 {[%emt 0:00:12]} Rxb1+ {[%emt 0:00:23]} 25. Qxb1 {[%emt 0:00:03]} Nxd5 {[%emt 0:01:20] Pair of Knights!} 26. Bd4 {[%emt 0:08:34]} (26. fxe4 $17 {is a better defense.} Nxc3 27. Qxd3 Nxe4 28. Bxe4 fxe4 29. Qd5+ Kf8 30. Qxe4) 26... Qe6 $19 {[%emt 0:02:18]} 27. Qb8+ {[%emt 0:02:27]} (27. Qb7 {keeps fighting.}) 27... Kf7 {[%emt 0:00:02]} 28. Qh8 {[%emt 0:00:53]} c5 {[%emt 0:01:49]} 29. Qxh7+ {[%emt 0:01:51]} Ke8 {[%emt 0:00:07] Active counter play!} 30. Qh8+ {[%emt 0:02:30]} Kd7 {[%emt 0:00:10]} 31. fxe4 {[%emt 0:00:33]} cxd4 {[%emt 0:01:05]} 32. Qxd4 {[%emt 0:00:23]} fxe4 {[%emt 0:00:19]} 33. Bxe4 {[%emt 0:00:35]} N3b4 {[%emt 0:00:47]} 34. Qg7+ {[%emt 0:00:23] [#]} Ne7 $1 {[%emt 0:01:03]} 35. Qd4 {[%emt 0:00:01]} Nbc6 {[%emt 0:01:10]} 36. Qd3 {[%emt 0:00:05]} d5 {[%emt 0:01:11]} 37. Bg2 {[%emt 0:00:29]} Ke8 {[%emt 0:01:21]} 38. Qb3 {[%emt 0:01:06]} Kf7 {[%emt 0:01:13]} 39. h4 $2 {[%emt 0:00:35]} (39. Qc3 {was necessary.}) 39... Ne5 {[%emt 0:00:33]} 40. Qd1 {[%emt 0:01:12]} (40. Qb8 $142) 40... Ng4 {[%emt 0:01:04]} 41. Qf3+ {[%emt 0:00:21]} Kg7 {[%emt 0:00:05]} 42. e4 {[%emt 0:00:06]} (42. Bh3 Qxe3+ 43. Qxe3 Nxe3 44. Kf2) 42... Qb6+ {[%emt 0:01:05]} 43. Kh1 {[%emt 0:00:08]} Qb1+ {[%emt 0:00:22]} 44. Qf1 {[%emt 0:00:15]} Qxf1+ {[%emt 0:00:21]} 45. Bxf1 {[%emt 0:00:01]} Nf2+ {[%emt 0:00:15]} (45... dxe4 $142 46. Be2 Ne5) 46. Kg2 {[%emt 0:00:08]} Nxe4 {[%emt 0:00:03]} 47. g4 {[%emt 0:00:15] Prevents Nf5.} Nc6 {[%emt 0:00:52] Hoping for ...Ne5.} 48. Ba6 {[%emt 0:00:14]} Ne5 {[%emt 0:00:44] ...d4 is the strong threat.} 49. g5 {[%emt 0:00:16]} Nc5 {[%emt 0:00:57]} 50. Be2 {[%emt 0:00:21]} Ne6 {[%emt 0:00:27]} 51. Kg3 {[%emt 0:00:20] Inhibits Nf4.} Kf8 {[%emt 0:00:47]} 52. h5 {[%emt 0:00:24]} gxh5 {[%emt 0:00:09]} 53. Bxh5 {[%emt 0:00:01]} Ke7 {[%emt 0:00:14]} 54. Bd1 {[%emt 0:00:47]} Nxg5 {[%emt 0:00:17]} 55. Kf4 {[%emt 0:00:05]} Kf6 {[%emt 0:00:05]} 56. Bb3 {[%emt 0:00:27]} Ne6+ {[%emt 0:00:28]} (56... Nc4 $142 57. Bc2 Ne6+ 58. Kg3 Ke5 59. Kf2 Ng5 60. Ba4 Ne4+ 61. Kf3 Nc5 62. Be8 Kd4 63. Ke2 Kc3 64. Bg6 d4 65. Kd1 Nd2 66. Ke2 Nce4 67. Be8 d3+ 68. Ke3 Nc4+ 69. Kf4 {[#]} d2 $1 70. Ba4 Kd3 71. Bb3 Ne3 72. Ba4 Nc5 73. Bb5+ Nc4 74. Kg5 d1=Q 75. Bxc4+ Kxc4 76. Kf4 Qf1+ 77. Kg5 Ne4+ 78. Kh6 Qf6+ 79. Kh7 Nc5 80. Kg8 Ne6 81. Kh7 Qg7#) 57. Ke3 {[%emt 0:00:33]} d4+ {[%emt 0:00:56]} 58. Ke4 {[%emt 0:00:43]} Nc6 {[%emt 0:00:05] ( -> ...Nc5+)} 59. Bc4 {[%emt 0:00:46]} (59. Bd1 $142) 59... Ke7 {[%emt 0:01:18]} (59... Nc7 $142 {Threatens to win with ...Ke7.} 60. Bb3 Na6) 60. Kd5 {[%emt 0:00:36]} Kd7 {[%emt 0:00:29]} 61. Bf1 {[%emt 0:01:05]} (61. Bb3 $142) 61... Ncd8 {[%emt 0:00:30]} (61... Ne7+ $142 62. Ke5 Ng6+ 63. Kf6 Ngf4) 62. Bc4 {[%emt 0:01:44]} Kc7 {[%emt 0:00:10] aiming for ...Kb6.} 63. Bf1 {[%emt 0:00:26]} Kb6 {[%emt 0:00:09]} 64. Kc4 {[%emt 0:00:44]} Kc6 {[%emt 0:00:07] Black mates.} 65. Bd3 {[%emt 0:01:42]} Kd6 {[%emt 0:00:01]} 66. Bh7 {[%emt 0:00:14]} Ke5 {[%emt 0:00:06]} 67. Kd3 {[%emt 0:00:24]} Nb7 {[%emt 0:00:06]} 68. Kc4 {[%emt 0:00:10]} Nd6+ {[%emt 0:00:09]} 69. Kd3 {[%emt 0:01:08]} Nf4+ {[%emt 0:00:39]} 70. Kd2 {[%emt 0:00:09]} Ne4+ {[%emt 0:00:14]} 71. Kd1 {[%emt 0:00:13]} d3 {[%emt 0:00:09][%cal Bd4d3,Bd3d2][%mdl 32]} 72. Bg8 {[%emt 0:00:18]} Kd4 {[%emt 0:00:08]} 73. Bb3 {[%emt 0:00:28]} Ke3 {[%emt 0:00:45]} 74. Bc2 {[%emt 0:00:46]} Nf2+ {[%emt 0:00:23]} 75. Kc1 {[%emt 0:00:04]} d2+ {[%emt 0:00:29]} 76. Kb1 {[%emt 0:00:13]} N4d3 {[%emt 0:00:53]} 77. Ba4 {[%emt 0:00:24]} Ke2 {[%emt 0:00:36]} 78. Ka2 {[%emt 0:01:32]} Ke1 {[%emt 0:00:22]} 79. Ka3 {[%emt 0:00:25]} Nc5 {[%emt 0:00:09]} 80. Bc2 {[%emt 0:00:13]} Nfd3 {[%emt 0:00:07] Weighted Error Value: White=0.81/Black=0.37} 0-1